bitfinex/quotes_BTCUSD_20251124
["timestamp","ask_amount","ask_price","bid_price","bid_amount"]
[1763991178472,0.09862219,86652.0,86642.0,0.01555]
[1763991178670,0.09862219,86652.0,86641.0,0.03467006]
[1763991178671,0.09862219,86652.0,86643.0,0.01555]
[1763991178904,0.09862219,86659.0,86643.0,0.01555]
[1763991179078,0.34456749,86658.0,86643.0,0.01555]
[1763991179441,0.02156749,86657.0,86643.0,0.01555]
[1763991181025,0.02156749,86657.0,86644.0,0.02275]
[1763991181783,0.02156749,86657.0,86643.0,0.001]
[1763991181932,0.90651561,86654.0,86643.0,0.001]
[1763991182320,0.02157922,86653.0,86643.0,0.001]
[1763991182514,0.90651561,86654.0,86643.0,0.001]
[1763991182745,0.02158065,86653.0,86643.0,0.001]
[1763991182942,0.90651561,86654.0,86643.0,0.001]
[1763991183144,0.02158065,86653.0,86643.0,0.001]
[1763991183483,0.90651561,86654.0,86641.0,0.00771006]
[1763991183644,0.02158412,86653.0,86644.0,0.001]
[1763991183847,0.90651561,86654.0,86641.0,0.00771006]
[1763991184046,0.02158412,86653.0,86641.0,0.00771006]
[1763991184252,0.90651561,86654.0,86641.0,0.00771006]
[1763991184253,0.02158582,86652.0,86643.0,0.001]
[1763991184451,0.90651561,86654.0,86641.0,0.00771006]
[1763991184660,0.02158736,86653.0,86641.0,0.00771006]
[1763991184858,0.02158736,86652.0,86644.0,0.001]
[1763991185176,0.90651561,86654.0,86641.0,0.00771006]
[1763991185419,0.02158892,86653.0,86641.0,0.00771006]
[1763991185606,0.02158892,86652.0,86641.0,0.00771006]
[1763991185772,0.90651561,86654.0,86641.0,0.00771006]
[1763991186004,0.09862219,86646.0,86641.0,0.00039006]
[1763991186405,0.34459467,86645.0,86643.0,0.001]
[1763991186574,0.02159467,86644.0,86641.0,0.00039006]
[1763991186987,0.02159467,86644.0,86641.0,0.00139006]
[1763991187631,0.323,86642.0,86641.0,0.00039006]
[1763991187834,2.31755067,86642.0,86641.0,0.00039006]
[1763991188955,0.323,86640.0,86627.0,0.00613006]
[1763991189127,0.09862219,86631.0,86627.0,0.00652029]
[1763991189707,0.09862219,86631.0,86630.0,0.01555]
[1763991189910,0.323,86638.0,86630.0,0.01555]
[1763991190108,0.09862219,86632.0,86627.0,0.00652029]
[1763991190797,0.09862219,86632.0,86627.0,0.00752029]
[1763991190984,0.09862219,86632.0,86627.0,0.00652029]
[1763991191114,0.09862219,86632.0,86627.0,0.00752029]
[1763991198170,0.323,86639.0,86627.0,0.00752029]
[1763991198388,0.09862219,86632.0,86627.0,0.00752029]
[1763991199532,0.09862219,86632.0,86627.0,0.00652029]
[1763991199957,0.09862219,86632.0,86627.0,0.00752029]
[1763991200247,0.09862219,86632.0,86627.0,0.00652029]
[1763991200481,0.09862219,86632.0,86627.0,0.00752029]
[1763991201160,0.09701967,86632.0,86627.0,0.00752029]
[1763991201769,0.09701967,86632.0,86627.0,0.00139023]
[1763991201995,0.3446262,86631.0,86627.0,0.00139023]
[1763991202314,0.02163254,86630.0,86627.0,0.00139023]
[1763991202488,0.323,86631.0,86627.0,0.00139023]
[1763991202688,0.02163049,86630.0,86627.0,0.00039023]
[1763991202892,0.0216309,86629.0,86627.0,0.00039023]
[1763991203090,0.323,86631.0,86627.0,0.00039023]
[1763991203274,0.02163404,86630.0,86627.0,0.00039023]
[1763991203474,0.02163404,86629.0,86627.0,0.00139023]
[1763991203677,0.323,86631.0,86627.0,0.00139023]
[1763991203904,0.02163134,86630.0,86627.0,0.00039023]
[1763991204080,0.323,86631.0,86627.0,0.00139023]
[1763991204261,0.02163509,86630.0,86627.0,0.00139023]
[1763991204476,0.02163509,86629.0,86627.0,0.00139023]
[1763991204676,0.323,86631.0,86627.0,0.00139023]
[1763991204881,0.02163359,86630.0,86627.0,0.00139023]
[1763991205077,0.323,86631.0,86627.0,0.00139023]
[1763991205078,2.295956,86628.0,86627.0,0.00139023]
[1763991205319,2.31758959,86628.0,86627.0,0.00139023]
[1763991205744,2.31758959,86628.0,86627.0,0.00039023]
[1763991207536,2.14153859,86628.0,86627.0,0.00039023]
[1763991208755,2.14253859,86628.0,86627.0,0.00039023]
[1763991209205,2.14153859,86628.0,86627.0,0.00039023]
[1763991226998,1.81853859,86628.0,86627.0,0.00039023]
[1763991231610,2.14153859,86628.0,86627.0,0.00039023]
[1763991233258,0.34463359,86628.0,86627.0,0.00039023]
[1763991235806,0.02163359,86628.0,86627.0,0.00039023]
[1763991236619,0.02163359,86629.0,86627.0,0.00039023]
[1763991236936,0.02163359,86628.0,86627.0,0.00039023]
[1763991237405,0.323,86629.0,86627.0,0.00039023]
[1763991237590,0.02163359,86628.0,86627.0,0.00039023]
[1763991238827,0.02163359,86630.0,86627.0,0.00039023]
[1763991239029,0.02163359,86629.0,86627.0,0.00039023]
[1763991239248,0.02163359,86628.0,86627.0,0.00039023]
[1763991239483,0.34463359,86628.0,86627.0,0.00039023]
[1763991240747,0.02163359,86628.0,86627.0,0.00039023]
[1763991240954,2.14153859,86628.0,86627.0,0.00039023]
[1763991242042,2.23725396,86628.0,86627.0,0.00039023]
[1763991242460,2.14153859,86628.0,86627.0,0.00039023]
[1763991245739,2.20448423,86628.0,86627.0,0.00039023]
[1763991245954,2.20448423,86628.0,86585.0,0.02467]
[1763991245955,0.323,86601.0,86585.0,0.02467]
[1763991246159,0.323,86601.0,86592.0,0.01241052]
[1763991246160,0.09862219,86598.0,86592.0,0.01241052]
[1763991246366,0.323,86601.0,86592.0,0.01241052]
[1763991246701,0.323,86601.0,86600.0,0.01513]
[1763991246927,0.09862219,86619.0,86600.0,0.01513]
[1763991247129,0.34467392,86618.0,86601.0,0.04776442]
[1763991247443,0.09862219,86619.0,86601.0,0.04776442]
[1763991247444,0.11190681,86619.0,86601.0,0.04776442]
[1763991247642,0.11190681,86619.0,86602.0,0.02467]
[1763991247944,0.11190681,86619.0,86603.0,0.02309388]
[1763991248154,0.11290681,86619.0,86603.0,0.02309388]
[1763991248355,0.33728462,86619.0,86604.0,0.02467]
[1763991248527,0.33728462,86619.0,86605.0,0.02309335]
[1763991248726,0.33628462,86619.0,86604.0,0.02467]
[1763991248934,0.33628462,86619.0,86618.0,0.01202]
[1763991250076,0.33628462,86619.0,86618.0,0.01241052]
[1763991250480,0.01328462,86619.0,86618.0,0.01241052]
[1763991250678,0.63504097,86628.0,86618.0,0.01241052]
[1763991250883,0.09862219,86619.0,86618.0,0.01241052]
[1763991251422,0.11211549,86619.0,86618.0,0.01241052]
[1763991253553,0.11211549,86619.0,86618.0,0.00039052]
[1763991253767,0.13378589,86619.0,86618.0,0.00039052]
[1763991253980,2.25369089,86619.0,86618.0,0.00039052]
[1763991255228,2.25469089,86619.0,86618.0,0.00039052]
[1763991255433,2.25468783,86619.0,86618.0,0.00039052]
[1763991255855,0.35916064,86619.0,86618.0,0.00039052]
[1763991256885,0.35816064,86619.0,86618.0,0.00039052]
[1763991257541,0.35816064,86619.0,86618.0,0.00139052]
[1763991258478,0.35816064,86619.0,86618.0,0.00039052]
[1763991261305,2.15506564,86619.0,86618.0,0.00039052]
[1763991262625,2.27028695,86619.0,86580.0,0.0002]
[1763991262833,0.09862219,86581.0,86580.0,0.00059122]
[1763991271060,0.323,86589.0,86580.0,0.00059122]
[1763991271061,0.323,86589.0,86580.0,0.00159122]
[1763991271486,0.09862219,86581.0,86580.0,0.00159122]
[1763991272960,0.09862219,86581.0,86580.0,0.00059122]
[1763991274015,0.09862219,86581.0,86580.0,0.00159122]
[1763991276300,0.12017997,86581.0,86580.0,0.00159122]
[1763991276506,0.45519797,86581.0,86580.0,0.00159122]
[1763991277153,0.45519797,86581.0,86580.0,0.00059122]
[1763991277837,0.44317997,86581.0,86580.0,0.00059122]
[1763991282574,2.24008497,86581.0,86580.0,0.00059122]
[1763991284593,2.24108497,86581.0,86580.0,0.00059122]
[1763991285015,2.24008497,86581.0,86580.0,0.00059122]
[1763991285220,2.06609562,86581.0,86580.0,0.00059122]
[1763991292312,2.07692978,86581.0,86580.0,0.00059122]
[1763991293061,2.08869978,86581.0,86580.0,0.00059122]
[1763991294182,0.01177,86581.0,86580.0,0.04097122]
[1763991294387,0.63578681,86600.0,86580.0,0.04097122]
[1763991294648,0.09862219,86598.0,86581.0,0.02494]
[1763991294993,0.63578681,86591.0,86581.0,0.02494]
[1763991295414,0.63578681,86591.0,86590.0,0.02706]
[1763991295611,0.09862219,86598.0,86590.0,0.02706]
[1763991296855,0.09862219,86598.0,86590.0,0.02806]
[1763991297195,0.02163818,86597.0,86590.0,0.02806]
[1763991297392,0.02163818,86596.0,86590.0,0.01262]
[1763991297644,0.02163818,86595.0,86590.0,0.01262]
[1763991297848,0.02163818,86594.0,86590.0,0.01262]
[1763991298004,0.02163818,86593.0,86590.0,0.01262]
[1763991298209,0.02163818,86592.0,86590.0,0.01162]
[1763991298409,0.02163818,86591.0,86590.0,0.01162]
[1763991298631,0.02163818,86591.0,86590.0,0.01262]
[1763991298800,0.02163818,86591.0,86590.0,0.01162]
[1763991299219,0.02163818,86591.0,86590.0,0.01262]
[1763991299429,0.02163818,86591.0,86590.0,0.01162]
[1763991300008,0.02163818,86591.0,86590.0,0.01262]
[1763991300232,0.02163818,86591.0,86590.0,0.001]
[1763991301983,0.02163818,86591.0,86585.0,0.01162]
[1763991302192,0.323,86597.0,86585.0,0.01162]
[1763991302193,0.02163818,86590.0,86585.0,0.01162]
[1763991302404,0.02163818,86589.0,86585.0,0.03656]
[1763991302618,0.09862219,86598.0,86585.0,0.03656]
[1763991302840,0.02161402,86597.0,86588.0,0.01544]
[1763991303057,0.02161402,86596.0,86586.0,0.02494]
[1763991303260,0.02161402,86595.0,86586.0,0.02494]
[1763991303473,0.02161402,86594.0,86586.0,0.02494]
[1763991303670,0.09862219,86598.0,86586.0,0.02494]
[1763991303881,0.63578681,86596.0,86586.0,0.02494]
[1763991304097,0.02160927,86595.0,86586.0,0.02494]
[1763991304305,0.63578681,86596.0,86586.0,0.02494]
[1763991304538,0.02160528,86595.0,86586.0,0.02494]
[1763991304753,0.63578681,86596.0,86586.0,0.02494]
[1763991304954,0.02160535,86595.0,86586.0,0.02494]
[1763991305153,0.63578681,86596.0,86586.0,0.02494]
[1763991305380,0.63578681,86596.0,86588.0,0.001]
[1763991305585,0.63578681,86596.0,86586.0,0.02494]
[1763991305754,0.63578681,86596.0,86595.0,0.01544]
[1763991305958,0.02160151,86596.0,86595.0,0.04038]
[1763991306312,0.323,86602.0,86595.0,0.04038]
[1763991306582,0.021598,86601.0,86595.0,0.01544]
[1763991306762,0.021598,86600.0,86599.0,0.01544]
[1763991307625,0.63578681,86610.0,86599.0,0.04038]
[1763991307856,0.02159365,86609.0,86599.0,0.04038]
[1763991308181,0.02159365,86608.0,86599.0,0.04038]
[1763991308392,0.63578681,86610.0,86599.0,0.04038]
[1763991308607,0.63578681,86610.0,86599.0,0.01544]
[1763991308820,0.63578681,86610.0,86599.0,0.04038]
[1763991309894,0.63578681,86610.0,86599.0,0.01544]
[1763991311680,0.02748,86600.0,86596.0,0.00732]
[1763991311880,0.02748,86597.0,86596.0,0.00732]
[1763991312332,0.05132,86597.0,86596.0,0.00732]
[1763991313141,0.05132,86597.0,86596.0,0.00832]
[1763991313344,0.05132,86597.0,86596.0,0.00732]
[1763991313526,0.05132,86597.0,86596.0,0.00832]
[1763991316300,2.171225,86597.0,86596.0,0.00832]
[1763991317214,2.171225,86597.0,86596.0,0.001]
[1763991317875,2.171225,86597.0,86586.0,0.00732]
[1763991317876,0.323,86596.0,86586.0,0.00732]
[1763991318035,0.11409219,86591.0,86586.0,0.00732]
[1763991318456,0.13836219,86591.0,86586.0,0.00732]
[1763991319313,0.46136219,86591.0,86586.0,0.00732]
[1763991319513,0.46136219,86591.0,86590.0,0.2154]
[1763991321247,0.46136219,86591.0,86590.0,0.2144]
[1763991321451,0.46136219,86591.0,86590.0,0.2154]
[1763991321691,0.46136219,86591.0,86590.0,0.001]
[1763991322756,0.47378219,86591.0,86590.0,0.001]
[1763991323602,0.49544136,86591.0,86590.0,0.001]
[1763991324867,0.323,86590.0,86580.0,0.00059122]
[1763991325066,0.02789,86581.0,86580.0,0.00059122]
[1763991325448,0.05216,86581.0,86580.0,0.00059122]
[1763991326215,0.05216,86581.0,86580.0,0.00159122]
[1763991334302,0.07379349,86581.0,86580.0,0.00159122]
[1763991334467,0.05216,86581.0,86580.0,0.00159122]
[1763991335490,0.07378814,86581.0,86580.0,0.00159122]
[1763991338080,2.19369314,86581.0,86580.0,0.00159122]
[1763991338289,2.36101694,86581.0,86580.0,0.00159122]
[1763991338491,2.24579563,86581.0,86580.0,0.00159122]
[1763991338699,2.25311563,86581.0,86580.0,0.00159122]
[1763991340013,2.25311563,86581.0,86580.0,0.00059122]
[1763991341384,1.796905,86579.0,86560.0,0.0002]
[1763991341590,0.44951219,86561.0,86560.0,0.00059133]
[1763991342022,0.47378219,86561.0,86560.0,0.00059133]
[1763991342894,0.4954101,86561.0,86560.0,0.00059133]
[1763991344400,0.4964101,86561.0,86560.0,0.00059133]
[1763991344806,0.4954101,86561.0,86560.0,0.00059133]
[1763991345231,0.34462791,86561.0,86560.0,0.00059133]
[1763991345390,0.36165,86561.0,86560.0,0.00059133]
[1763991347340,0.38326851,86561.0,86560.0,0.00059133]
[1763991347539,0.38326851,86561.0,86560.0,0.00159133]
[1763991347704,0.38326851,86561.0,86560.0,0.00059133]
[1763991348098,0.38426851,86561.0,86560.0,0.00059133]
[1763991348319,0.38326851,86561.0,86560.0,0.00059133]
[1763991351166,0.42159536,86561.0,86560.0,0.00059133]
[1763991351366,2.18017351,86561.0,86560.0,0.00059133]
[1763991353324,2.18117351,86561.0,86560.0,0.00059133]
[1763991353528,0.38426851,86561.0,86560.0,0.00059133]
[1763991354551,0.38326851,86561.0,86560.0,0.00059133]
[1763991354751,0.34461851,86561.0,86560.0,0.00059133]
[1763991354927,0.35985851,86561.0,86560.0,0.00059133]
[1763991355128,0.03685851,86561.0,86560.0,0.00059133]
[1763991355780,0.05962851,86561.0,86560.0,0.00059133]
[1763991363250,2.17953351,86561.0,86560.0,0.00059133]
[1763991363629,2.19198351,86561.0,86560.0,0.00059133]
[1763991364700,2.20281636,86561.0,86560.0,0.00059133]
[1763991364857,2.20381636,86561.0,86560.0,0.00059133]
[1763991365661,2.20481636,86561.0,86560.0,0.00059133]
[1763991366339,2.20381636,86561.0,86560.0,0.00059133]
[1763991366520,2.20481636,86561.0,86560.0,0.00059133]
[1763991367284,2.37214016,86561.0,86560.0,0.00059133]
[1763991367727,0.37510249,86558.0,86550.0,0.0002]
[1763991367925,2.24621719,86551.0,86550.0,0.0002]
[1763991368072,2.27866855,86551.0,86550.0,0.0002]
[1763991368269,2.30143855,86551.0,86550.0,0.0002]
[1763991370038,2.30243855,86551.0,86550.0,0.0002]
[1763991370867,2.41765986,86551.0,86550.0,0.0002]
[1763991371083,2.30243855,86551.0,86550.0,0.0002]
[1763991373909,0.07307851,86551.0,86550.0,0.0002]
[1763991374309,0.07310651,86551.0,86550.0,0.0002]
[1763991374756,0.07210651,86551.0,86550.0,0.0002]
[1763991375981,0.07210651,86551.0,86550.0,0.0012]
[1763991376761,0.04933651,86551.0,86550.0,0.0012]
[1763991377014,0.02164651,86551.0,86550.0,0.0012]
[1763991377990,0.32338991,86558.0,86550.0,0.0012]
[1763991378202,0.02164713,86557.0,86550.0,0.0012]
[1763991378458,0.02164713,86556.0,86550.0,0.0012]
[1763991378688,0.02164713,86555.0,86550.0,0.0012]
[1763991378854,0.00038991,86558.0,86550.0,0.0002]
[1763991379020,0.02164722,86557.0,86550.0,0.0002]
[1763991379220,0.02164722,86556.0,86550.0,0.0002]
[1763991379416,0.32338991,86558.0,86550.0,0.0002]
[1763991379706,0.0216473,86557.0,86550.0,0.0002]
[1763991379983,0.32338991,86558.0,86550.0,0.0002]
[1763991380121,0.0216473,86557.0,86550.0,0.0002]
[1763991380323,0.00038991,86558.0,86550.0,0.0002]
[1763991380518,0.02164698,86557.0,86550.0,0.0002]
[1763991380859,0.00038991,86558.0,86550.0,0.0002]
[1763991381055,0.02164697,86557.0,86550.0,0.0002]
[1763991381225,0.02901,86551.0,86550.0,0.0002]
[1763991381649,0.05224,86551.0,86550.0,0.0002]
[1763991381812,0.07388794,86551.0,86550.0,0.0002]
[1763991382262,0.05224,86551.0,86550.0,0.0002]
[1763991382969,0.05224,86551.0,86550.0,0.0012]
[1763991383547,0.07388899,86551.0,86550.0,0.0012]
[1763991383742,0.07388899,86551.0,86550.0,0.0002]
[1763991385302,0.05224,86551.0,86550.0,0.0002]
[1763991386437,0.07389358,86551.0,86550.0,0.0002]
[1763991392718,0.07389358,86551.0,86550.0,0.0012]
[1763991393328,0.03410358,86551.0,86550.0,0.0012]
[1763991393649,0.32338991,86558.0,86550.0,0.0012]
[1763991393650,0.00038991,86558.0,86550.0,0.012]
[1763991394304,0.00038991,86558.0,86557.0,0.0108]
[1763991394476,0.00038991,86558.0,86550.0,0.0012]
[1763991394701,0.00038991,86558.0,86550.0,0.0002]
[1763991395619,0.00038991,86558.0,86550.0,0.0012]
[1763991396759,0.01245,86551.0,86550.0,0.0012]
[1763991397360,0.02323,86557.0,86550.0,0.0012]
[1763991397567,0.00038991,86558.0,86550.0,0.0012]
[1763991397942,0.02361991,86558.0,86550.0,0.0012]
[1763991398153,0.01656,86551.0,86550.0,0.0012]
[1763991398359,0.02361991,86558.0,86550.0,0.0022]
[1763991398560,0.02361991,86558.0,86550.0,0.0002]
[1763991398963,0.02361991,86558.0,86550.0,0.0012]
[1763991399140,0.02361991,86558.0,86550.0,0.0002]
[1763991399472,0.02361991,86558.0,86550.0,0.0012]
[1763991399699,0.00038991,86558.0,86550.0,0.0012]
[1763991407326,0.00038991,86558.0,86557.0,0.0108]
[1763991407561,0.00038991,86558.0,86550.0,0.0012]
[1763991407928,0.00038991,86558.0,86550.0,0.02430803]
[1763991408383,0.00038991,86558.0,86550.0,0.02330803]
[1763991408541,0.00038991,86558.0,86557.0,0.001]
[1763991408740,0.00038991,86558.0,86550.0,0.02330803]
[1763991408966,0.00038991,86558.0,86551.0,0.02310776]
[1763991409495,0.63607801,86561.0,86551.0,0.02310776]
[1763991409667,0.63607801,86561.0,86551.0,0.02315772]
[1763991409875,0.63607801,86561.0,86551.0,4.996e-05]
[1763991410669,0.63584727,86561.0,86551.0,0.02415772]
[1763991411261,0.63584727,86561.0,86557.0,0.001]
[1763991411462,0.65879727,86567.0,86551.0,0.02415772]
[1763991411671,0.63584727,86561.0,86551.0,0.00104996]
[1763991411908,0.63584727,86561.0,86551.0,0.00204996]
[1763991412075,0.12157219,86560.0,86551.0,0.00104996]
[1763991412469,0.12157219,86560.0,86557.0,0.001]
[1763991412640,0.02295,86559.0,86551.0,4.996e-05]
[1763991412847,0.03459,86559.0,86557.0,0.001]
[1763991413293,0.03863,86558.0,86557.0,0.001]
[1763991413489,0.03863,86558.0,86551.0,4.996e-05]
[1763991413678,0.01568,86558.0,86551.0,4.996e-05]
[1763991413868,0.03863,86558.0,86551.0,4.996e-05]
[1763991414074,0.03863,86558.0,86551.0,0.00104996]
[1763991414275,0.03863,86558.0,86551.0,4.996e-05]
[1763991414650,0.03863,86558.0,86551.0,0.00104996]
[1763991416471,0.01164,86559.0,86551.0,0.00104996]
[1763991417503,0.01164,86559.0,86551.0,4.996e-05]
[1763991417689,0.01164,86559.0,86551.0,0.00104996]
[1763991418100,0.00463184,86581.0,86551.0,0.00104996]
[1763991418101,0.63584727,86570.0,86558.0,0.0216]
[1763991418276,0.63584727,86570.0,86559.0,0.0108]
[1763991418605,0.323,86569.0,86559.0,0.0108]
[1763991420082,0.323,86569.0,86558.0,0.0108]
[1763991420284,0.323,86569.0,86558.0,0.0118]
[1763991420505,0.323,86569.0,86558.0,0.0108]
[1763991420995,0.323,86569.0,86559.0,0.001]
[1763991421206,0.323,86569.0,86558.0,0.0108]
[1763991421418,0.323,86569.0,86558.0,0.0118]
[1763991421823,0.323,86569.0,86558.0,0.0108]
[1763991422021,0.323,86569.0,86559.0,0.001]
[1763991422739,0.01164,86568.0,86559.0,0.001]
[1763991423142,0.01164,86568.0,86558.0,0.0108]
[1763991423529,0.01164,86568.0,86558.0,0.0118]
[1763991423735,0.01164,86568.0,86558.0,0.0108]
[1763991424123,0.01164,86568.0,86559.0,0.001]
[1763991424329,0.01164,86568.0,86558.0,0.0108]
[1763991424529,0.12594219,86559.0,86555.0,0.00732]
[1763991424782,0.01568,86558.0,86555.0,0.00732]
[1763991425123,0.323,86564.0,86555.0,0.00732]
[1763991425355,0.323,86564.0,86559.0,0.001]
[1763991426490,0.33464,86568.0,86559.0,0.001]
[1763991426631,0.01568,86560.0,86559.0,0.001]
[1763991427089,0.03863,86560.0,86559.0,0.001]
[1763991427511,0.03863,86560.0,86559.0,0.002]
[1763991427702,0.03863,86560.0,86559.0,0.001]
[1763991427905,0.00238,86561.0,86555.0,0.00732]
[1763991428080,0.11430219,86560.0,86559.0,0.002]
[1763991428686,0.11430219,86560.0,86559.0,0.001]
[1763991429853,0.11430219,86560.0,86555.0,0.00732]
[1763991430784,0.01568,86560.0,86555.0,0.00732]
[1763991430983,0.00238,86561.0,86559.0,0.001]
[1763991431185,0.00238,86561.0,86555.0,0.00732]
[1763991431411,0.09862219,86560.0,86555.0,0.00732]
[1763991431613,0.09862219,86560.0,86555.0,0.00832]
[1763991432254,0.12157219,86560.0,86555.0,0.00832]
[1763991432471,0.0354,86573.0,86559.0,0.01535]
[1763991432751,0.323,86569.0,86560.0,0.01535]
[1763991432960,0.02168979,86568.0,86560.0,0.01535]
[1763991433188,0.323,86569.0,86561.0,0.01218]
[1763991433316,0.02168934,86568.0,86561.0,0.01218]
[1763991433518,0.323,86569.0,86562.0,0.02474]
[1763991433722,0.02168948,86568.0,86562.0,0.02474]
[1763991433923,0.323,86569.0,86562.0,0.02474]
[1763991434145,0.02168948,86568.0,86562.0,0.02474]
[1763991434462,0.323,86569.0,86562.0,0.02474]
[1763991434769,0.02168934,86568.0,86562.0,0.02474]
[1763991434929,0.323,86569.0,86562.0,0.02474]
[1763991435937,0.323,86569.0,86562.0,0.02574]
[1763991436274,0.323,86569.0,86562.0,0.02474]
[1763991436482,0.323,86569.0,86562.0,0.02574]
[1763991437724,0.323,86567.0,86562.0,0.001]
[1763991437891,0.01604,86563.0,86562.0,0.001]
[1763991438294,0.323,86567.0,86562.0,0.001]
[1763991438913,0.323,86567.0,86555.0,0.00732]
[1763991439112,0.323,86564.0,86562.0,0.001]
[1763991439319,0.323,86564.0,86554.0,0.00732]
[1763991439518,0.02169016,86563.0,86554.0,0.00732]
[1763991439726,0.02468,86563.0,86562.0,0.001]
[1763991439931,0.02468,86563.0,86554.0,0.00732]
[1763991439932,0.04637022,86563.0,86554.0,0.00732]
[1763991440069,0.02762,86555.0,86554.0,0.00732]
[1763991440467,0.0523,86555.0,86554.0,0.00732]
[1763991440803,0.323,86563.0,86554.0,0.00732]
[1763991441005,0.02169004,86562.0,86554.0,0.00732]
[1763991441184,0.02169004,86561.0,86554.0,0.00732]
[1763991441387,0.34768,86563.0,86554.0,0.00732]
[1763991441590,0.02168874,86562.0,86554.0,0.00732]
[1763991441866,0.34768,86563.0,86554.0,0.00732]
[1763991441980,0.02168874,86562.0,86554.0,0.00732]
[1763991442183,0.34768,86563.0,86554.0,0.00732]
[1763991442402,0.02168862,86562.0,86554.0,0.00732]
[1763991442610,0.34768,86563.0,86554.0,0.00732]
[1763991442834,0.04636828,86562.0,86554.0,0.00732]
[1763991443039,0.02762,86555.0,86554.0,0.00732]
[1763991443655,0.323,86563.0,86554.0,0.00732]
[1763991443854,0.02168783,86562.0,86554.0,0.02391]
[1763991444074,0.323,86563.0,86554.0,0.02391]
[1763991444309,0.02168776,86562.0,86554.0,0.00732]
[1763991444527,0.02468,86562.0,86554.0,0.00732]
[1763991445102,0.02468,86562.0,86554.0,0.00832]
[1763991445305,0.02468,86562.0,86554.0,0.00732]
[1763991446383,0.01158,86555.0,86554.0,0.00732]
[1763991446589,0.02762,86555.0,86554.0,0.00732]
[1763991446899,0.0523,86555.0,86551.0,4.996e-05]
[1763991447105,0.0523,86555.0,86554.0,0.00410303]
[1763991448128,0.07398631,86555.0,86554.0,0.00410303]
[1763991448348,2.25339243,86555.0,86554.0,0.00510303]
[1763991448907,2.2459938,86555.0,86554.0,0.00510303]
[1763991449538,2.2459938,86555.0,86554.0,0.00410303]
[1763991449970,2.2479938,86555.0,86554.0,0.00410303]
[1763991450454,2.2469938,86555.0,86554.0,0.00410303]
[1763991450668,2.2479938,86555.0,86554.0,0.00410303]
[1763991451091,2.2469938,86555.0,86554.0,0.00410303]
[1763991451537,2.2479938,86555.0,86554.0,0.00410303]
[1763991452377,2.36321511,86555.0,86554.0,0.00410303]
[1763991452819,2.2479938,86555.0,86554.0,0.00410303]
[1763991455647,2.19589131,86555.0,86554.0,0.00410303]
[1763991455850,2.174205,86555.0,86554.0,0.00410303]
[1763991455983,2.149525,86555.0,86554.0,0.00410303]
[1763991456399,0.35162,86555.0,86554.0,0.00410303]
[1763991457222,0.35062,86555.0,86554.0,0.00410303]
[1763991458456,0.323,86555.0,86554.0,0.01557303]
[1763991460546,0.323,86555.0,86554.0,0.05690303]
[1763991460770,0.323,86555.0,86554.0,0.03216303]
[1763991461842,0.323,86555.0,86554.0,0.01557303]
[1763991463321,0.323,86555.0,86554.0,0.03216303]
[1763991464331,0.323,86555.0,86554.0,0.01557303]
[1763991465065,0.323,86555.0,86554.0,0.00410303]
[1763991469409,0.03633,86561.0,86554.0,0.00410303]
[1763991469558,0.01158,86561.0,86551.0,4.996e-05]
[1763991469931,0.03596,86561.0,86551.0,4.996e-05]
[1763991470536,0.02438,86560.0,86551.0,4.996e-05]
[1763991472595,0.34738,86560.0,86551.0,4.996e-05]
[1763991473191,0.323,86560.0,86551.0,4.996e-05]
[1763991473377,0.02438,86559.0,86551.0,4.996e-05]
[1763991473999,0.01191,86552.0,86551.0,4.996e-05]
[1763991475133,0.01191,86552.0,86551.0,0.00104996]
[1763991475515,0.01191,86552.0,86551.0,0.00524832]
[1763991478143,0.05202,86552.0,86551.0,0.00524832]
[1763991478309,2.19359272,86552.0,86551.0,0.00524832]
[1763991479381,2.19359272,86552.0,86551.0,0.00424832]
[1763991481593,0.34466772,86552.0,86551.0,0.00424832]
[1763991481804,0.323,86552.0,86551.0,0.00424832]
[1763991482124,1.28364404,86561.0,86551.0,0.04322832]
[1763991482328,0.02167555,86560.0,86551.0,0.04322832]
[1763991482530,0.02167555,86559.0,86551.0,0.00424832]
[1763991482730,1.27206404,86561.0,86551.0,0.00424832]
[1763991482948,0.34467477,86560.0,86551.0,0.00424832]
[1763991483161,0.02167477,86559.0,86551.0,0.00424832]
[1763991483484,0.323,86560.0,86551.0,0.00424832]
[1763991483485,0.02167477,86558.0,86551.0,0.00424832]
[1763991483782,0.323,86560.0,86551.0,0.00424832]
[1763991485251,0.02168863,86559.0,86551.0,0.00424832]
[1763991485474,0.323,86560.0,86551.0,0.00424832]
[1763991485646,0.02168868,86559.0,86551.0,0.00424832]
[1763991485822,0.323,86560.0,86551.0,0.00424832]
[1763991486022,0.02168868,86559.0,86552.0,0.02253]
[1763991486227,0.323,86560.0,86552.0,0.02253]
[1763991486434,0.323,86561.0,86559.0,0.02831]
[1763991486594,0.09862219,86568.0,86560.0,0.01645]
[1763991486796,0.34468778,86567.0,86561.0,0.01186]
[1763991487001,0.323,86567.0,86561.0,0.01186]
[1763991487450,0.323,86567.0,86566.0,0.00372177]
[1763991488227,0.33491,86567.0,86566.0,0.00372177]
[1763991488672,0.01191,86567.0,86566.0,0.00372177]
[1763991489686,0.02764,86567.0,86566.0,0.00372177]
[1763991491439,0.07369307,86567.0,86566.0,0.00372177]
[1763991491844,0.01245,86573.0,86566.0,0.00372177]
[1763991492039,0.0216726,86572.0,86566.0,0.00372177]
[1763991492274,0.09862219,86572.0,86561.0,0.03439]
[1763991492477,0.323,86570.0,86561.0,0.03439]
[1763991492670,0.323,86570.0,86561.0,0.01186]
[1763991493372,0.323,86570.0,86566.0,0.001]
[1763991493528,0.323,86570.0,86561.0,0.01186]
[1763991493738,0.323,86570.0,86569.0,0.00362648]
[1763991494341,0.01646,86570.0,86569.0,0.00362648]
[1763991495976,0.04095,86570.0,86569.0,0.00362648]
[1763991496174,0.04095,86570.0,86569.0,0.00462648]
[1763991497102,0.01646,86570.0,86569.0,0.00462648]
[1763991498959,0.04095,86570.0,86569.0,0.00462648]
[1763991502445,0.04095,86570.0,86569.0,0.00362648]
[1763991507157,2.18251113,86570.0,86569.0,0.00362648]
[1763991509900,2.23461362,86570.0,86569.0,0.00362648]
[1763991510053,2.24198358,86570.0,86569.0,0.00362648]